[Event "Schack-SM 2024: Mastarklassen-elit"]
[Site "Fortnox Arena, Hejaregatan 5, Vaxjo, Sweden"]
[Date "2024.06.30"]
[Round "2.4"]
[White "Thorn, Eric"]
[Black "Arman, Deniz"]
[Result "0-1"]
[TimeControl "90 minutes for 40 moves + 30 minutes for the rest of the game + 30 seconds per move from move one."]
[WhiteTitle "FM"]
[BlackTitle "FM"]
[WhiteElo "2359"]
[BlackElo "2343"]

1. d4 {[%clk 01:30:45]} {[%emt 00:00:10]} d6 {[%clk 01:09:56]} {[%emt
00:21:09]} 2. e4 {[%clk 01:30:12]} {[%emt 00:01:04]} Nf6 {[%clk 01:06:38]}
{[%emt 00:03:48]} 3. Nc3 {[%clk 01:30:11]} {[%emt 00:00:29]} e5 {[%clk
01:06:55]} {[%emt 00:00:13]} 4. Nf3 {[%clk 01:30:04]} {[%emt 00:00:37]} exd4
{[%clk 01:07:16]} {[%emt 00:00:11]} 5. Nxd4 {[%clk 01:25:26]} {[%emt 00:05:08]}
Be7 {[%clk 01:07:07]} {[%emt 00:00:36]} 6. Be2 {[%clk 01:04:16]} {[%emt
00:21:43]} O-O {[%clk 01:06:41]} {[%emt 00:00:56]} 7. O-O {[%clk 01:04:07]}
{[%emt 00:00:38]} Re8 {[%clk 01:07:06]} {[%emt 00:00:06]} 8. Re1 {[%clk
00:52:55]} {[%emt 00:11:41]} Bf8 {[%clk 01:04:16]} {[%emt 00:03:20]} 9. Bf1
{[%clk 00:50:59]} {[%emt 00:02:27]} c5 {[%clk 00:53:21]} {[%emt 00:11:25]} 10.
Nb3 {[%clk 00:49:37]} {[%emt 00:01:52]} Bg4 {[%clk 00:20:26]} {[%emt 00:33:24]}
11. f3 {[%clk 00:48:22]} {[%emt 00:01:47]} Be6 {[%clk 00:20:35]} {[%emt
00:00:22]} 12. Bg5 {[%clk 00:38:03]} {[%emt 00:10:47]} h6 {[%clk 00:20:29]}
{[%emt 00:00:37]} 13. Bh4 {[%clk 00:37:00]} {[%emt 00:01:33]} Nc6 {[%clk
00:20:37]} {[%emt 00:00:22]} 14. Qd2 {[%clk 00:32:43]} {[%emt 00:04:47]} a6
{[%clk 00:16:27]} {[%emt 00:04:41]} 15. Rad1 {[%clk 00:29:34]} {[%emt
00:03:39]} b5 {[%clk 00:16:10]} {[%emt 00:00:47]} 16. Qf2 {[%clk 00:25:55]}
{[%emt 00:04:08]} b4 {[%clk 00:11:40]} {[%emt 00:05:00]} 17. Na4 {[%clk
00:14:29]} {[%emt 00:11:58]} Qc7 {[%clk 00:09:11]} {[%emt 00:02:57]} 18. Bg3
{[%clk 00:11:31]} {[%emt 00:03:27]} Ne5 {[%clk 00:03:34]} {[%emt 00:06:08]} 19.
Bxe5 {[%clk 00:08:42]} {[%emt 00:03:20]} dxe5 {[%clk 00:04:01]} {[%emt
00:00:03]} 20. Nbxc5 {[%clk 00:08:20]} {[%emt 00:00:52]} Bc8 {[%clk 00:00:51]}
{[%emt 00:03:39]} 21. Kh1 {[%clk 00:07:13]} {[%emt 00:01:37]} a5 {[%clk
00:00:45]} {[%emt 00:00:37]} 22. b3 {[%clk 00:05:31]} {[%emt 00:02:12]} Rb8
{[%clk 00:01:05]} {[%emt 00:00:10]} 23. Bc4 {[%clk 00:05:20]} {[%emt 00:00:40]}
Qc6 {[%clk 00:00:37]} {[%emt 00:00:58]} 24. Nd3 {[%clk 00:04:30]} {[%emt
00:01:21]} Rb7 {[%clk 00:00:53]} {[%emt 00:00:13]} 25. c3 {[%clk 00:03:33]}
{[%emt 00:01:28]} Rc7 {[%clk 00:00:42]} {[%emt 00:00:40]} 26. cxb4 {[%clk
00:02:09]} {[%emt 00:01:53]} axb4 {[%clk 00:01:05]} {[%emt 00:00:08]} 27. Nb6
{[%clk 00:02:03]} {[%emt 00:00:37]} Qb7 {[%clk 00:00:41]} {[%emt 00:00:53]} 28.
Nxc8 {[%clk 00:02:06]} {[%emt 00:00:26]} Rcxc8 {[%clk 00:00:49]} {[%emt
00:00:24]} 29. Qb2 {[%clk 00:01:43]} {[%emt 00:00:54]} Qb8 {[%clk 00:01:07]}
{[%emt 00:00:12]} 30. Nc1 {[%clk 00:01:00]} {[%emt 00:01:13]} Bc5 {[%clk
00:01:22]} {[%emt 00:00:15]} 31. Ne2 {[%clk 00:01:25]} {[%emt 00:00:06]} Qa7
{[%clk 00:00:42]} {[%emt 00:01:11]} 32. Ng3 {[%clk 00:01:01]} {[%emt 00:00:53]}
g6 {[%clk 00:00:56]} {[%emt 00:00:15]} 33. Re2 {[%clk 00:00:50]} {[%emt
00:00:42]} h5 {[%clk 00:01:22]} {[%emt 00:00:04]} 34. Red2 {[%clk 00:00:46]}
{[%emt 00:00:35]} h4 {[%clk 00:01:40]} {[%emt 00:00:12]} 35. Ne2 {[%clk
00:00:50]} {[%emt 00:00:25]} Kg7 {[%clk 00:01:56]} {[%emt 00:00:14]} 36. g4
{[%clk 00:00:39]} {[%emt 00:00:41]} hxg3 {[%clk 00:00:44]} {[%emt 00:01:42]} 37.
hxg3 {[%clk 00:01:05]} {[%emt 00:00:04]} Be3 {[%clk 00:00:39]} {[%emt
00:00:34]} 38. Rd3 {[%clk 00:01:07]} {[%emt 00:00:28]} Bg5 {[%clk 00:00:44]}
{[%emt 00:00:25]} 39. Kg2 {[%clk 00:01:14]} {[%emt 00:00:22]} Rh8 {[%clk
00:01:10]} {[%emt 00:00:06]} 40. Ng1 {[%clk 00:00:40]} {[%emt 00:01:04]} Rh5
{[%clk 00:00:57]} {[%emt 00:00:43]} 41. Nh3 {[%clk 00:19:22]} {[%emt 00:11:47]}
Rch8 {[%clk 00:27:11]} {[%emt 00:04:17]} 42. Rh1 {[%clk 00:19:39]} {[%emt
00:00:11]} Qc5 {[%clk 00:23:38]} {[%emt 00:04:04]} 43. Qe2 {[%clk 00:09:40]}
{[%emt 00:10:30]} Qc8 {[%clk 00:21:34]} {[%emt 00:02:33]} 44. g4 {[%clk
00:06:57]} {[%emt 00:03:14]} Rh4 {[%clk 00:20:02]} {[%emt 00:02:01]} 45. Rdd1
{[%clk 00:06:01]} {[%emt 00:01:27]} Nxg4 {[%clk 00:13:31]} {[%emt 00:07:01]} 46.
fxg4 {[%clk 00:05:37]} {[%emt 00:00:54]} Rxg4+ {[%clk 00:13:40]} {[%emt
00:00:20]} 47. Kf1 {[%clk 00:05:22]} {[%emt 00:00:45]} Rg3 {[%clk 00:12:43]}
{[%emt 00:01:28]} 48. Qf2 {[%clk 00:02:41]} {[%emt 00:03:11]} Bf4 {[%clk
00:08:15]} {[%emt 00:04:59]} 49. Rd3 {[%clk 00:00:44]} {[%emt 00:02:27]} Rhxh3
{[%clk 00:07:10]} {[%emt 00:01:35]} 50. Rxh3 {[%clk 00:00:36]} {[%emt
00:00:38]} Qxh3+ {[%clk 00:07:25]} {[%emt 00:00:13]} 51. Ke2 {[%clk 00:01:00]}
{[%emt 00:00:06]} Qg4+ {[%clk 00:07:45]} {[%emt 00:00:10]} 0-1

[Event "Schack-SM 2024: Mastarklassen-elit"]
[Site "Fortnox Arena, Hejaregatan 5, Vaxjo, Sweden"]
[Date "2024.06.30"]
[Round "2.5"]
[White "Carlsson, Ludvig"]
[Black "Lundin, Jan"]
[Result "1-0"]
[TimeControl "90 minutes for 40 moves + 30 minutes for the rest of the game + 30 seconds per move from move one."]
[WhiteTitle "IM"]
[BlackTitle "FM"]
[WhiteElo "2335"]
[BlackElo "2246"]

1. e4 {[%clk 01:30:40]} {[%emt 00:00:17]} e6 {[%clk 01:30:27]} {[%emt
00:00:34]} 2. d4 {[%clk 01:30:59]} {[%emt 00:00:10]} d5 {[%clk 01:30:53]}
{[%emt 00:00:06]} 3. Nd2 {[%clk 01:31:12]} {[%emt 00:00:15]} Nc6 {[%clk
01:30:34]} {[%emt 00:00:50]} 4. Ngf3 {[%clk 01:31:26]} {[%emt 00:00:15]} Nf6
{[%clk 01:30:51]} {[%emt 00:00:12]} 5. e5 {[%clk 01:31:49]} {[%emt 00:00:07]}
Nd7 {[%clk 01:31:16]} {[%emt 00:00:07]} 6. Be2 {[%clk 01:32:11]} {[%emt
00:00:07]} a5 {[%clk 01:30:23]} {[%emt 00:01:24]} 7. Nf1 {[%clk 01:24:53]}
{[%emt 00:07:46]} b6 {[%clk 01:27:43]} {[%emt 00:03:12]} 8. Ng3 {[%clk
01:14:50]} {[%emt 00:10:33]} Ba6 {[%clk 01:15:21]} {[%emt 00:12:52]} 9. Bxa6
{[%clk 01:13:28]} {[%emt 00:01:52]} Rxa6 {[%clk 01:15:46]} {[%emt 00:00:04]} 10.
c3 {[%clk 01:08:57]} {[%emt 00:05:00]} Qc8 {[%clk 01:07:54]} {[%emt 00:08:23]}
11. Ng5 {[%clk 01:03:43]} {[%emt 00:05:43]} h6 {[%clk 01:04:33]} {[%emt
00:03:53]} 12. Nh3 {[%clk 01:03:20]} {[%emt 00:00:51]} Ne7 {[%clk 00:59:17]}
{[%emt 00:05:47]} 13. O-O {[%clk 00:59:59]} {[%emt 00:03:49]} g6 {[%clk
00:57:58]} {[%emt 00:01:52]} 14. Nf4 {[%clk 00:57:09]} {[%emt 00:03:18]} Bg7
{[%clk 00:55:17]} {[%emt 00:03:12]} 15. Be3 {[%clk 00:57:07]} {[%emt 00:00:31]}
O-O {[%clk 00:53:15]} {[%emt 00:02:34]} 16. h4 {[%clk 00:53:39]} {[%emt
00:03:56]} Rd8 {[%clk 00:51:43]} {[%emt 00:02:04]} 17. Qg4 {[%clk 00:52:06]}
{[%emt 00:02:02]} Nf8 {[%clk 00:49:30]} {[%emt 00:02:43]} 18. Nfh5 {[%clk
00:33:45]} {[%emt 00:18:52]} gxh5 {[%clk 00:49:01]} {[%emt 00:00:59]} 19. Nxh5
{[%clk 00:33:43]} {[%emt 00:00:31]} Nfg6 {[%clk 00:48:56]} {[%emt 00:00:35]} 20.
Nxg7 {[%clk 00:33:02]} {[%emt 00:01:11]} Kxg7 {[%clk 00:49:12]} {[%emt
00:00:15]} 21. h5 {[%clk 00:33:21]} {[%emt 00:00:10]} Nf5 {[%clk 00:47:59]}
{[%emt 00:01:43]} 22. hxg6 {[%clk 00:33:25]} {[%emt 00:00:27]} fxg6 {[%clk
00:48:19]} {[%emt 00:00:10]} 23. Qh3 {[%clk 00:33:25]} {[%emt 00:00:30]} Rh8
{[%clk 00:45:51]} {[%emt 00:02:57]} 24. g4 {[%clk 00:33:38]} {[%emt 00:00:18]}
Ne7 {[%clk 00:44:43]} {[%emt 00:01:37]} 25. Kg2 {[%clk 00:31:09]} {[%emt
00:02:58]} Qf8 {[%clk 00:32:35]} {[%emt 00:12:38]} 26. Rh1 {[%clk 00:31:14]}
{[%emt 00:00:25]} g5 {[%clk 00:28:28]} {[%emt 00:04:40]} 27. f4 {[%clk
00:28:16]} {[%emt 00:03:27]} Ng6 {[%clk 00:18:34]} {[%emt 00:10:24]} 28. Raf1
{[%clk 00:28:12]} {[%emt 00:00:32]} gxf4 {[%clk 00:15:37]} {[%emt 00:03:27]} 29.
Qh2 {[%clk 00:28:25]} {[%emt 00:00:16]} Qf7 {[%clk 00:13:11]} {[%emt 00:02:57]}
30. Bxf4 {[%clk 00:25:28]} {[%emt 00:03:27]} Nxf4+ {[%clk 00:13:28]} {[%emt
00:00:14]} 31. Rxf4 {[%clk 00:25:33]} {[%emt 00:00:24]} Qg6 {[%clk 00:13:42]}
{[%emt 00:00:16]} 32. Rhf1 {[%clk 00:25:39]} {[%emt 00:00:23]} Raa8 {[%clk
00:12:45]} {[%emt 00:01:29]} 33. Qh4 {[%clk 00:25:24]} {[%emt 00:00:45]} Rae8
{[%clk 00:11:22]} {[%emt 00:01:53]} 34. Rf6 {[%clk 00:21:45]} {[%emt 00:04:08]}
Qe4+ {[%clk 00:09:51]} {[%emt 00:02:01]} 35. Kh2 {[%clk 00:21:49]} {[%emt
00:00:25]} Rh7 {[%clk 00:00:53]} {[%emt 00:09:31]} 36. R1f2 {[%clk 00:20:24]}
{[%emt 00:01:54]} Kg8 {[%clk 00:00:43]} {[%emt 00:00:40]} 37. Qh5 {[%clk
00:18:43]} {[%emt 00:02:11]} Rd8 {[%clk 00:00:34]} {[%emt 00:00:40]} 38. Rxe6
{[%clk 00:19:00]} {[%emt 00:00:13]} Rg7 {[%clk 00:00:50]} {[%emt 00:00:13]} 39.
Rxh6 {[%clk 00:19:17]} {[%emt 00:00:12]} Rh7 {[%clk 00:00:44]} {[%emt
00:00:37]} 40. Qg5+ {[%clk 00:19:38]} {[%emt 00:00:09]} 1-0

[ePGN "0.1;DGT LiveChess/2.2.6"]

[Event "Schack-SM 2024: Mastarklassen-elit"]
[Site "Fortnox Arena, Hejaregatan 5, Vaxjo, Sweden"]
[Date "2024.06.29"]
[Round "1.1"]
[White "Thorn, Eric"]
[Black "Carlsson, Ludvig"]
[Result "1/2-1/2"]
[TimeControl "90 minutes for 40 moves + 30 minutes for the rest of the game + 30 seconds per move from move one."]
[WhiteTitle "FM"]
[BlackTitle "IM"]
[WhiteElo "2359"]
[BlackElo "2335"]

1. d4 {[%clk 01:30:57]} {[%emt 00:00:03]} Nf6 {[%clk 01:30:50]} {[%emt
00:00:11]} 2. c4 {[%clk 01:31:14]} {[%emt 00:00:14]} g6 {[%clk 01:31:09]}
{[%emt 00:00:10]} 3. Nc3 {[%clk 01:30:57]} {[%emt 00:00:47]} d5 {[%clk
01:31:28]} {[%emt 00:00:12]} 4. cxd5 {[%clk 01:27:26]} {[%emt 00:04:00]} Nxd5
{[%clk 01:31:08]} {[%emt 00:00:50]} 5. e4 {[%clk 01:27:50]} {[%emt 00:00:06]}
Nxc3 {[%clk 01:31:30]} {[%emt 00:00:07]} 6. bxc3 {[%clk 01:28:16]} {[%emt
00:00:04]} Bg7 {[%clk 01:31:51]} {[%emt 00:00:10]} 7. Nf3 {[%clk 01:28:24]}
{[%emt 00:00:22]} c5 {[%clk 01:32:10]} {[%emt 00:00:11]} 8. Bb5+ {[%clk
01:26:21]} {[%emt 00:02:33]} Nc6 {[%clk 01:32:31]} {[%emt 00:00:09]} 9. O-O
{[%clk 01:23:15]} {[%emt 00:03:35]} O-O {[%clk 01:32:46]} {[%emt 00:00:15]} 10.
Bxc6 {[%clk 01:23:42]} {[%emt 00:00:04]} bxc6 {[%clk 01:33:09]} {[%emt
00:00:08]} 11. Qc2 {[%clk 01:24:07]} {[%emt 00:00:04]} cxd4 {[%clk 01:33:12]}
{[%emt 00:00:26]} 12. cxd4 {[%clk 01:24:32]} {[%emt 00:00:05]} Bg4 {[%clk
01:33:33]} {[%emt 00:00:09]} 13. Ne5 {[%clk 01:24:09]} {[%emt 00:00:54]} Qxd4
{[%clk 01:33:49]} {[%emt 00:00:13]} 14. Bb2 {[%clk 01:24:32]} {[%emt 00:00:06]}
Qb6 {[%clk 01:34:06]} {[%emt 00:00:13]} 15. Rab1 {[%clk 01:24:55]} {[%emt
00:00:09]} Bxe5 {[%clk 01:34:27]} {[%emt 00:00:09]} 16. Bxe5 {[%clk 00:00:00]}
{[%emt 00:03:08]} Qa5 {[%clk 01:36:33]} {[%emt 00:00:40]} 17. Bc3 {[%clk
01:22:10]} {[%emt 00:02:25]} Qc5 {[%clk 01:36:51]} {[%emt 00:00:11]} 18. Qb2
{[%clk 01:21:51]} {[%emt 00:00:49]} a5 {[%clk 01:37:12]} {[%emt 00:00:11]} 19.
Bd4 {[%clk 00:58:05]} {[%emt 00:24:16]} Qc4 {[%clk 01:36:39]} {[%emt 00:01:03]}
20. Rbc1 {[%clk 00:44:38]} {[%emt 00:13:56]} Qb4 {[%clk 01:36:07]} {[%emt
00:01:02]} 21. Rxc6 {[%clk 00:37:48]} {[%emt 00:07:22]} Rfc8 {[%clk 01:26:50]}
{[%emt 00:09:45]} 22. Rcc1 {[%clk 00:30:13]} {[%emt 00:08:05]} Rxc1 {[%clk
01:19:32]} {[%emt 00:07:48]} 23. Rxc1 {[%clk 00:30:35]} {[%emt 00:00:08]} Qxb2
{[%clk 01:19:56]} {[%emt 00:00:05]} 24. Bxb2 {[%clk 00:31:00]} {[%emt
00:00:06]} Rc8 {[%clk 01:20:22]} {[%emt 00:00:03]} 25. Rxc8+ {[%clk 00:27:44]}
{[%emt 00:03:47]} Bxc8 {[%clk 01:20:43]} {[%emt 00:00:09]} 1/2-1/2

[Event "Schack-SM 2024: Mastarklassen-elit"]
[Site "Fortnox Arena, Hejaregatan 5, Vaxjo, Sweden"]
[Date "2024.06.29"]
[Round "1.2"]
[White "Arman, Deniz"]
[Black "Crevatin, Leo"]
[Result "1/2-1/2"]
[TimeControl "90 minutes for 40 moves + 30 minutes for the rest of the game + 30 seconds per move from move one."]
[WhiteTitle "FM"]
[BlackTitle "FM"]
[WhiteElo "2343"]
[BlackElo "2235"]

1. e4 {[%clk 01:30:33]} {[%emt 00:00:28]} c6 {[%clk 01:30:58]} {[%emt
00:00:02]} 2. d4 {[%clk 01:29:39]} {[%emt 00:01:23]} d5 {[%clk 01:31:21]}
{[%emt 00:00:08]} 3. e5 {[%clk 01:29:54]} {[%emt 00:00:16]} Bf5 {[%clk
01:31:44]} {[%emt 00:00:06]} 4. h4 {[%clk 01:29:52]} {[%emt 00:00:32]} h6
{[%clk 01:31:29]} {[%emt 00:00:45]} 5. g4 {[%clk 01:24:00]} {[%emt 00:06:22]}
Be4 {[%clk 01:31:48]} {[%emt 00:00:10]} 6. Rh3 {[%clk 01:23:07]} {[%emt
00:01:24]} e6 {[%clk 01:26:56]} {[%emt 00:05:22]} 7. Rb3 {[%clk 01:19:26]}
{[%emt 00:04:11]} b6 {[%clk 01:18:23]} {[%emt 00:09:03]} 8. Nd2 {[%clk
01:11:15]} {[%emt 00:08:40]} Bh7 {[%clk 01:13:31]} {[%emt 00:05:23]} 9. Ndf3
{[%clk 01:07:31]} {[%emt 00:04:15]} Ne7 {[%clk 01:02:33]} {[%emt 00:11:26]} 10.
h5 {[%clk 01:01:48]} {[%emt 00:06:15]} Nd7 {[%clk 00:57:49]} {[%emt 00:05:15]}
11. Be3 {[%clk 00:58:40]} {[%emt 00:03:36]} Rc8 {[%clk 00:51:52]} {[%emt
00:06:27]} 12. Ba6 {[%clk 00:38:41]} {[%emt 00:20:30]} Rc7 {[%clk 00:50:50]}
{[%emt 00:01:30]} 13. Ne2 {[%clk 00:36:32]} {[%emt 00:02:39]} c5 {[%clk
00:45:50]} {[%emt 00:05:30]} 14. c4 {[%clk 00:18:39]} {[%emt 00:18:24]} dxc4
{[%clk 00:38:45]} {[%emt 00:07:34]} 15. Bxc4 {[%clk 00:18:55]} {[%emt
00:00:15]} cxd4 {[%clk 00:32:06]} {[%emt 00:07:03]} 16. Qxd4 {[%clk 00:19:17]}
{[%emt 00:00:15]} Nc6 {[%clk 00:26:08]} {[%emt 00:06:27]} 17. Qf4 {[%clk
00:19:38]} {[%emt 00:00:09]} Na5 {[%clk 00:24:07]} {[%emt 00:02:32]} 18. Bb5
{[%clk 00:19:11]} {[%emt 00:00:55]} Nxb3 {[%clk 00:22:19]} {[%emt 00:02:19]} 19.
axb3 {[%clk 00:19:38]} {[%emt 00:00:05]} Be7 {[%clk 00:20:44]} {[%emt
00:02:03]} 20. Qa4 {[%clk 00:13:54]} {[%emt 00:06:13]} O-O {[%clk 00:19:20]}
{[%emt 00:01:54]} 21. g5 {[%clk 00:10:26]} {[%emt 00:03:59]} hxg5 {[%clk
00:15:49]} {[%emt 00:04:01]} 22. h6 {[%clk 00:10:01]} {[%emt 00:00:55]} Qa8
{[%clk 00:13:06]} {[%emt 00:03:12]} 23. Qg4 {[%clk 00:02:21]} {[%emt 00:08:10]}
Qe4 {[%clk 00:11:34]} {[%emt 00:02:01]} 24. Qg3 {[%clk 00:02:33]} {[%emt
00:00:21]} gxh6 {[%clk 00:09:06]} {[%emt 00:02:58]} 25. Ned4 {[%clk 00:01:29]}
{[%emt 00:01:33]} Nc5 {[%clk 00:05:32]} {[%emt 00:04:05]} 26. Rd1 {[%clk
00:01:50]} {[%emt 00:00:09]} a6 {[%clk 00:03:43]} {[%emt 00:02:19]} 27. Be2
{[%clk 00:02:13]} {[%emt 00:00:07]} Qg6 {[%clk 00:03:21]} {[%emt 00:00:52]} 28.
Kf1 {[%clk 00:00:59]} {[%emt 00:01:43]} b5 {[%clk 00:03:18]} {[%emt 00:00:34]}
29. Qg2 {[%clk 00:01:14]} {[%emt 00:00:15]} f5 {[%clk 00:02:11]} {[%emt
00:01:36]} 30. exf6 {[%clk 00:01:30]} {[%emt 00:00:15]} Qxf6 {[%clk 00:01:38]}
{[%emt 00:01:02]} 31. Nh2 {[%clk 00:01:54]} {[%emt 00:00:06]} Be4 {[%clk
00:00:54]} {[%emt 00:01:14]} 32. Qg3 {[%clk 00:02:19]} {[%emt 00:00:05]} Rd7
{[%clk 00:00:43]} {[%emt 00:00:39]} 33. Ng4 {[%clk 00:00:36]} {[%emt 00:02:14]}
Qg7 {[%clk 00:00:55]} {[%emt 00:00:18]} 34. b4 {[%clk 00:01:02]} {[%emt
00:00:04]} h5 {[%clk 00:00:42]} {[%emt 00:00:41]} 35. bxc5 {[%clk 00:01:20]}
{[%emt 00:00:12]} hxg4 {[%clk 00:00:52]} {[%emt 00:00:21]} 36. Nxe6 {[%clk
00:00:57]} {[%emt 00:00:52]} Rxd1+ {[%clk 00:01:08]} {[%emt 00:00:14]} 37. Bxd1
{[%clk 00:01:23]} {[%emt 00:00:05]} Qh6 {[%clk 00:01:17]} {[%emt 00:00:21]} 38.
Bxg4 {[%clk 00:01:41]} {[%emt 00:00:10]} Re8 {[%clk 00:00:48]} {[%emt
00:01:00]} 39. Qe5 {[%clk 00:01:19]} {[%emt 00:00:53]} Bd3+ {[%clk 00:00:40]}
{[%emt 00:00:38]} 40. Kg1 {[%clk 00:00:46]} {[%emt 00:01:01]} Bf6 {[%clk
00:00:43]} {[%emt 00:00:28]} 41. Qd5 {[%clk 00:27:53]} {[%emt 00:03:22]} Bc4
{[%clk 00:29:03]} {[%emt 00:02:09]} 42. Qd7 {[%clk 00:26:48]} {[%emt 00:01:35]}
Qg6 {[%clk 00:23:53]} {[%emt 00:05:41]} 43. Bf5 {[%clk 00:14:40]} {[%emt
00:12:38]} Bxe6 {[%clk 00:17:58]} {[%emt 00:06:26]} 44. Bxe6+ {[%clk 00:14:47]}
{[%emt 00:00:22]} Kf8 {[%clk 00:14:04]} {[%emt 00:04:23]} 45. Qd6+ {[%clk
00:03:28]} {[%emt 00:11:51]} Be7 {[%clk 00:10:33]} {[%emt 00:04:00]} 46. Qxa6
{[%clk 00:03:31]} {[%emt 00:00:27]} Qb1+ {[%clk 00:09:55]} {[%emt 00:01:08]} 47.
Kh2 {[%clk 00:03:29]} {[%emt 00:00:31]} Qxb2 {[%clk 00:08:51]} {[%emt
00:01:36]} 48. Bd7 {[%clk 00:02:01]} {[%emt 00:01:58]} Qe5+ {[%clk 00:06:47]}
{[%emt 00:02:33]} 49. Kg1 {[%clk 00:02:26]} {[%emt 00:00:05]} Rd8 {[%clk
00:05:22]} {[%emt 00:01:56]} 50. Bxb5 {[%clk 00:01:39]} {[%emt 00:01:17]} Rd1+
{[%clk 00:04:42]} {[%emt 00:01:11]} 51. Bf1 {[%clk 00:02:05]} {[%emt 00:00:02]}
Ra1 {[%clk 00:03:27]} {[%emt 00:01:45]} 52. Qh6+ {[%clk 00:02:27]} {[%emt
00:00:09]} Ke8 {[%clk 00:02:50]} {[%emt 00:01:06]} 53. Qc6+ {[%clk 00:01:52]}
{[%emt 00:01:05]} Kf8 {[%clk 00:02:10]} {[%emt 00:01:09]} 54. Kg2 {[%clk
00:02:02]} {[%emt 00:00:20]} Re1 {[%clk 00:01:46]} {[%emt 00:00:54]} 55. Qf3+
{[%clk 00:01:14]} {[%emt 00:01:18]} Qf6 {[%clk 00:01:24]} {[%emt 00:00:53]} 56.
Qa8+ {[%clk 00:00:45]} {[%emt 00:00:58]} Kg7 {[%clk 00:01:45]} {[%emt
00:00:09]} 57. Qd5 {[%clk 00:00:58]} {[%emt 00:00:17]} Rxe3 {[%clk 00:01:47]}
{[%emt 00:00:28]} 58. fxe3 {[%clk 00:01:20]} {[%emt 00:00:07]} Qf7 {[%clk
00:01:42]} {[%emt 00:00:35]} 59. Qd4+ {[%clk 00:00:52]} {[%emt 00:00:58]} Bf6
{[%clk 00:01:03]} {[%emt 00:01:10]} 60. Qe4 {[%clk 00:00:54]} {[%emt 00:00:28]}
Qe7 {[%clk 00:01:16]} {[%emt 00:00:13]} 61. Qc4 {[%clk 00:00:39]} {[%emt
00:00:49]} Qxe3 {[%clk 00:01:10]} {[%emt 00:00:36]} 62. c6 {[%clk 00:00:43]}
{[%emt 00:00:27]} Bd4 {[%clk 00:01:14]} {[%emt 00:00:27]} 63. Qe2 {[%clk
00:00:34]} {[%emt 00:00:37]} Qxe2+ {[%clk 00:00:46]} {[%emt 00:00:58]} 64. Bxe2
{[%clk 00:01:00]} {[%emt 00:00:04]} Be5 {[%clk 00:01:11]} {[%emt 00:00:06]} 65.
Bg4 {[%clk 00:01:26]} {[%emt 00:00:03]} 1/2-1/2